bitfinex/quotes_SOLUSD_20260203
["timestamp","ask_amount","ask_price","bid_price","bid_amount"]
[1770077943476,3.80092177,104.16,104.12,0.45588822]
[1770077943695,9.59880092,104.18,104.12,0.45588822]
[1770077943696,3.54935059,104.14,104.12,0.45588822]
[1770077943996,3.80092177,104.15,104.12,0.45588822]
[1770077945299,3.54935059,104.14,104.12,0.45588822]
[1770077947103,0.25157118,104.18,104.14,0.45588822]
[1770077947406,3.54935059,104.16,104.14,0.45588822]
[1770077948307,3.54935059,104.15,104.13,0.45588822]
[1770077949807,3.54935059,104.14,104.12,0.45588822]
[1770077950404,4.04100045,104.14,104.11,26.68]
[1770077950607,4.04100045,104.13,104.08,13.15691655]
[1770077950905,3.54935059,104.1,104.07,36.28851468]
[1770077951082,3.54935059,104.1,104.06,9.60936226]
[1770077952292,4.04100045,104.11,104.06,37.18331404]
[1770077952500,4.04100045,104.11,104.08,0.45588822]
[1770077952690,4.04100045,104.12,104.08,0.45588822]
[1770077953390,4.04100045,104.11,104.08,0.45588822]
[1770077953588,3.54935059,104.1,104.08,0.45588822]
[1770077954087,4.04100045,104.11,104.08,0.45588822]
[1770077955798,0.49164986,104.11,104.08,0.45588822]
[1770077955993,4.04100045,104.11,104.08,0.45588822]
[1770077960416,4.00538568,104.1,104.07,0.47383474]
[1770077960794,4.00538568,104.11,104.07,0.47383474]
[1770077961996,9.60482973,104.12,104.07,0.47383474]
[1770077962202,9.60482973,104.12,104.09,0.47383474]
[1770077962203,3.54935059,104.12,104.09,0.47383474]
[1770077963139,4.00538568,104.14,104.1,0.47383474]
[1770077963365,0.45603509,104.15,104.12,0.47383474]
[1770077963499,3.54949744,104.16,104.13,0.47383474]
[1770077964826,3.54935059,104.16,104.13,0.47383474]
[1770077965123,3.54935059,104.17,104.14,0.47383474]
[1770077965614,3.80092175,104.17,104.14,0.47383474]
[1770077967432,0.25157116,104.17,104.14,0.47383474]
[1770077967731,3.80092175,104.17,104.14,0.47383474]
[1770077970440,9.59928081,104.18,104.14,0.47383474]
[1770077970634,13.40020256,104.18,104.15,0.47383474]
[1770077971625,3.54935059,104.17,104.15,0.47383474]
[1770077972638,3.90092175,104.19,104.15,10.0751044]
[1770077972846,0.1,104.19,104.17,0.47383474]
[1770077973231,0.1,104.19,104.18,0.47383474]
[1770077974350,0.1,104.19,104.16,0.47383474]
[1770077974642,3.64935059,104.19,104.16,0.47383474]
[1770077977560,0.1,104.19,104.17,0.47383474]
[1770077978521,3.64935059,104.19,104.17,0.47383474]
[1770077978928,0.1,104.19,104.17,0.47383474]
[1770077979441,3.64935059,104.19,104.15,13.15034308]
[1770077979647,3.64935059,104.19,104.16,0.47383474]
[1770077980950,0.1,104.19,104.16,0.47383474]
[1770077984149,3.64935059,104.19,104.16,0.47383474]
[1770077984346,0.1,104.19,104.16,0.47383474]
[1770077984550,3.54935059,104.2,104.16,0.47383474]
[1770077985431,3.54935059,104.2,104.17,0.47383474]
[1770077987032,3.90092175,104.18,104.15,0.47383474]
[1770077987237,3.90092175,104.19,104.15,0.47383474]
[1770077988752,3.90092175,104.19,104.15,4.02318533]
[1770077988949,3.90092175,104.19,104.16,0.47383474]
[1770077989254,3.54935059,104.18,104.16,0.47383474]
[1770077990351,3.54935059,104.18,104.15,0.49574658]
[1770077990352,3.90092175,104.18,104.15,0.49574658]
[1770077991233,3.54935059,104.18,104.15,0.49574658]
[1770077992465,3.89847549,104.18,104.15,0.49574658]
[1770077993155,3.54690433,104.18,104.15,0.49574658]
[1770077996654,3.89847549,104.18,104.15,0.49574658]
[1770078000891,0.35157116,104.17,104.15,0.49574658]
[1770078001047,3.89847549,104.17,104.15,0.49574658]
[1770078001567,0.35157116,104.15,104.12,0.49574658]
[1770078001748,3.89847549,104.15,104.12,0.49574658]
[1770078001943,3.89847549,104.13,104.1,0.49574658]
[1770078002164,3.89847549,104.14,104.11,0.49574658]
[1770078005843,9.60192239,104.15,104.11,0.49574658]
[1770078005844,3.89847549,104.15,104.11,0.49574658]
[1770078006350,3.54690433,104.15,104.12,0.49574658]
[1770078006548,3.89847549,104.16,104.12,0.49574658]
[1770078006880,3.89847549,104.16,104.13,0.49574658]
[1770078007254,0.35157116,104.16,104.13,0.49574658]
[1770078007453,3.89847549,104.16,104.13,0.49574658]
[1770078009473,3.54690433,104.16,104.13,0.49574658]
[1770078009653,9.95159016,104.17,104.13,0.49574658]
[1770078009654,13.49849449,104.17,104.13,0.49574658]
[1770078010066,3.89847549,104.17,104.14,0.49574658]
[1770078011359,3.54690433,104.19,104.15,0.49574658]
[1770078011552,3.89847549,104.19,104.15,0.49574658]
[1770078011872,3.89847549,104.19,104.15,4.04265091]
[1770078012169,3.89847549,104.19,104.16,0.49574658]
[1770078015069,3.89847549,104.2,104.17,0.49574658]
[1770078015648,6.25786467,104.22,104.19,0.49574658]
[1770078016267,10.15634016,104.22,104.19,0.49574658]
[1770078016475,3.54690433,104.2,104.18,0.49574658]
[1770078016776,3.89847549,104.21,104.18,0.49574658]
[1770078017171,3.89847549,104.2,104.17,0.49574658]
[1770078018556,3.89847549,104.2,104.15,50.68333852]
[1770078018557,3.54690433,104.18,104.15,0.49574658]
[1770078018756,3.89847549,104.19,104.15,0.49574658]
[1770078018976,3.89847549,104.19,104.16,0.49574658]
[1770078022471,3.54690433,104.2,104.17,0.46383131]
[1770078022668,3.89847549,104.2,104.17,0.46383131]
[1770078023162,9.59646879,104.21,104.17,0.46383131]
[1770078023475,3.54690433,104.2,104.17,0.46383131]
[1770078026672,3.89847549,104.2,104.17,0.46383131]
[1770078026868,3.54690433,104.19,104.17,0.46383131]
[1770078027092,3.54690433,104.18,104.15,10.06489059]
[1770078027386,3.89847549,104.19,104.16,0.46383131]
[1770078028287,10.15634016,104.22,104.18,0.46383131]
[1770078028586,6.25786467,104.22,104.19,0.46383131]
[1770078028888,6.25786467,104.22,104.21,0.46383131]
[1770078030086,5.25786467,104.22,104.21,0.46383131]
[1770078030279,4.60943583,104.22,104.21,4.01073564]
[1770078032795,0.1,104.23,104.22,3.54690433]
[1770078033086,0.5,104.22,104.19,3.54690433]
[1770078034389,4.04690433,104.21,104.17,39.82615409]
[1770078034889,0.5,104.21,104.17,39.82615409]
[1770078035290,0.5,104.21,104.18,3.54690433]
[1770078035473,4.04690433,104.22,104.18,3.54690433]
[1770078036487,0.5,104.21,104.17,36.27924976]
[1770078036689,4.04690433,104.21,104.17,39.82615409]
[1770078037686,0.5,104.21,104.17,39.82615409]
[1770078039278,0.5,104.19,104.15,3.54690433]
[1770078039479,4.04690433,104.19,104.15,3.54690433]
[1770078039679,4.04690433,104.19,104.15,13.1480418]
[1770078039986,0.5,104.19,104.15,13.1480418]
[1770078040185,4.04690433,104.21,104.16,3.54690433]
[1770078040394,4.04690433,104.21,104.17,3.54690433]
[1770078042376,0.5,104.21,104.17,13.14646852]
[1770078043892,4.04690433,104.21,104.17,13.14646852]
[1770078047883,0.5,104.2,104.17,3.54690433]
[1770078048078,0.5,104.2,104.16,39.82696034]
[1770078048398,0.5,104.2,104.17,9.59961251]
[1770078048605,0.5,104.2,104.17,13.14651684]
[1770078051804,0.5,104.21,104.18,3.54690433]
[1770078051984,3.64690433,104.23,104.18,3.54690433]
[1770078051985,0.5,104.22,104.18,3.54690433]
[1770078052615,0.1,104.23,104.2,3.5436211]
[1770078053602,0.6,104.23,104.2,3.5436211]
[1770078054582,0.5,104.22,104.18,26.68]
[1770078054784,0.5,104.22,104.18,39.82183521]
[1770078055299,0.5,104.21,104.18,39.82183521]
[1770078055802,4.0436211,104.22,104.18,39.82183521]
[1770078057204,0.5,104.21,104.18,3.5436211]
[1770078057403,0.5,104.2,104.17,39.80290414]
[1770078057585,0.5,104.19,104.17,26.66]
[1770078058090,0.5,104.19,104.17,36.25962509]
[1770078059205,0.5,104.19,104.17,26.66]
[1770078059906,0.5,104.2,104.17,39.80321694]
[1770078060505,4.1436211,104.23,104.19,3.5436211]
[1770078060707,0.5,104.22,104.19,3.5436211]
[1770078061807,0.5,104.22,104.18,13.14161164]
[1770078063115,0.5,104.2,104.17,26.66]
[1770078063305,0.5,104.17,104.14,3.5436211]
[1770078063501,0.5,104.17,104.13,3.5436211]
[1770078064422,0.5,104.18,104.15,3.5436211]
[1770078064915,0.5,104.2,104.16,3.5436211]
[1770078065223,0.5,104.2,104.17,3.5436211]
[1770078067424,0.5,104.2,104.16,13.14349574]
[1770078068209,0.5,104.19,104.16,13.14349574]
[1770078068921,0.5,104.2,104.16,13.14349574]
[1770078070121,4.1436211,104.23,104.18,3.5436211]
[1770078070326,4.1436211,104.23,104.17,30.2236211]
[1770078070327,0.5,104.21,104.17,30.2236211]
[1770078070519,4.0436211,104.21,104.17,30.2236211]
[1770078070819,0.5,104.2,104.17,26.68]
[1770078071024,4.0436211,104.2,104.17,26.68]
[1770078071726,0.5,104.2,104.17,26.68]
[1770078071903,0.5,104.2,104.17,39.82330003]
[1770078073135,0.5,104.22,104.19,3.5436211]
[1770078074504,0.5,104.22,104.19,13.14131167]
[1770078074708,0.6,104.23,104.19,13.14131167]
[1770078074929,0.6,104.23,104.2,3.5436211]
[1770078075134,0.1,104.23,104.2,3.5436211]
[1770078076612,0.1,104.23,104.2,13.14009523]
[1770078077134,0.1,104.23,104.21,3.5436211]
[1770078077334,0.6,104.25,104.22,3.5436211]
[1770078078025,0.1,104.25,104.23,3.5436211]
[1770078078211,0.1,104.27,104.24,30.2236211]
[1770078078416,0.1,104.27,104.26,3.5436211]
[1770078078617,6.51187983,104.28,104.26,13.13437137]
[1770078078818,6.51187983,104.28,104.27,3.5436211]
[1770078079219,6.51187983,104.28,104.26,13.13437137]
[1770078079833,6.51187983,104.28,104.25,13.13546524]
[1770078080037,6.51187983,104.28,104.26,13.13498726]
[1770078080337,6.51187983,104.28,104.26,3.5436211]
[1770078081138,6.51187983,104.28,104.25,13.13549596]
[1770078081435,6.51187983,104.28,104.25,3.5436211]
[1770078081617,7.01187983,104.28,104.25,3.5436211]
[1770078081817,0.5,104.27,104.24,36.25291079]
[1770078083011,0.5,104.27,104.24,39.79653189]
[1770078083721,7.01187983,104.28,104.25,3.5436211]
[1770078084229,0.6,104.3,104.27,3.5436211]
[1770078084542,0.6,104.3,104.25,3.5436211]
[1770078084543,0.1,104.3,104.28,3.5436211]
[1770078085321,0.1,104.3,104.28,13.13277101]
[1770078085516,0.1,104.3,104.28,3.5436211]
[1770078086420,0.6,104.3,104.27,13.13363546]
[1770078086621,0.1,104.3,104.28,3.5436211]
[1770078086820,0.1,104.31,104.29,30.2036211]
[1770078087131,0.6,104.33,104.3,3.5436211]
[1770078087333,0.6,104.33,104.31,3.5436211]
[1770078087529,0.6,104.33,104.3,3.5436211]
[1770078088141,0.5,104.32,104.29,30.2036211]
[1770078088824,0.5,104.32,104.29,26.66]
[1770078089835,0.5,104.32,104.29,30.2036211]
[1770078090545,0.6,104.33,104.3,3.5436211]
[1770078091233,0.6,104.33,104.29,36.24849042]
[1770078091420,0.5,104.32,104.29,39.7922301]
[1770078091615,0.5,104.32,104.3,9.58739319]
[1770078091819,0.6,104.33,104.3,13.13101429]
[1770078092245,0.6,104.33,104.31,3.5436211]
[1770078095049,0.6,104.33,104.3,13.13101429]
[1770078095535,0.6,104.33,104.29,39.79193327]
[1770078097052,0.5,104.32,104.29,30.2036211]
[1770078098742,0.5,104.32,104.29,39.79226594]
[1770078098943,0.5,104.32,104.3,3.5436211]
[1770078101250,0.5,104.32,104.3,13.13118098]
[1770078103340,0.5,104.32,104.3,3.5436211]
[1770078103839,0.5,104.32,104.3,13.13119089]
[1770078104031,0.1,104.33,104.3,13.13119089]
[1770078104032,0.6,104.33,104.3,13.13119089]
[1770078104943,0.6,104.33,104.31,3.5436211]
[1770078105243,0.6,104.33,104.32,3.5436211]
[1770078105244,0.1,104.33,104.32,3.5436211]
[1770078106348,0.1,104.34,104.32,13.12951067]
[1770078106545,0.1,104.34,104.33,3.5436211]
[1770078107243,6.41605521,104.35,104.33,3.5436211]
[1770078107424,0.5,104.36,104.34,3.5436211]
[1770078107628,0.5,104.37,104.35,3.5436211]
[1770078107827,0.5,104.38,104.35,3.5436211]
[1770078108347,0.5,104.37,104.34,3.5436211]
[1770078108549,0.5,104.36,104.33,13.12820204]
[1770078110453,0.5,104.34,104.32,36.22557744]
[1770078110841,0.5,104.35,104.32,26.64]
[1770078111046,0.5,104.34,104.32,26.64]
[1770078111553,0.5,104.34,104.32,30.1836211]
[1770078111739,0.5,104.36,104.32,30.1836211]
[1770078112564,0.5,104.36,104.33,3.5436211]
[1770078113065,0.5,104.36,104.34,3.5436211]
[1770078113441,0.5,104.37,104.34,3.5436211]
[1770078113765,24.04658769,104.4,104.36,3.5436211]
[1770078113766,0.6,104.4,104.36,3.5436211]
[1770078114057,0.5,104.39,104.36,3.5436211]
[1770078114445,0.5,104.39,104.36,13.11321819]
[1770078114753,0.6,104.4,104.37,3.53146652]
[1770078114958,0.6,104.4,104.38,3.53146652]
[1770078116341,0.1,104.4,104.38,8.82627438]
[1770078116541,0.1,104.4,104.39,8.82627438]
[1770078116757,1e-08,104.4,104.39,18.40573601]
[1770078116958,6.27002656,104.43,104.39,42.63871323]
[1770078117176,0.1,104.44,104.42,8.82627438]
[1770078117338,0.9250369,104.46,104.41,0.28432314]
[1770078117656,0.9250369,104.46,104.43,8.82627438]
[1770078118059,0.5,104.45,104.43,8.82627438]
[1770078118253,0.5,104.44,104.41,8.82627438]
[1770078118653,0.5,104.44,104.41,18.40341715]
[1770078118848,0.5,104.44,104.41,8.82627438]
[1770078119049,0.5,104.44,104.4,45.04438842]
[1770078119264,0.5,104.44,104.41,18.40356986]
[1770078119664,0.5,104.44,104.41,8.82627438]
[1770078119969,0.5,104.44,104.4,36.21806067]
[1770078119970,0.5,104.43,104.4,45.04433505]
[1770078120766,0.5,104.43,104.4,26.64]
[1770078120974,0.5,104.43,104.4,35.46627438]
[1770078121155,8.82627438,104.45,104.41,8.82627438]
[1770078121349,0.5,104.43,104.39,9.57896676]
[1770078121553,9.32627438,104.43,104.38,26.62]
[1770078121782,0.5,104.4,104.38,26.62]
[1770078122072,0.5,104.41,104.38,35.44627438]
[1770078122394,0.5,104.41,104.38,45.02657181]
[1770078122874,0.5,104.41,104.37,45.02713523]
[1770078123076,0.5,104.41,104.38,18.40651352]
[1770078123773,0.5,104.42,104.38,18.40651352]
[1770078124074,9.32627438,104.43,104.39,8.82627438]
[1770078124256,0.5,104.42,104.39,8.82627438]
[1770078124857,0.5,104.42,104.38,18.40651352]
[1770078125050,9.32627438,104.42,104.38,18.40651352]
[1770078125367,9.32627438,104.42,104.38,8.82627438]
[1770078125574,0.5,104.4,104.37,26.62]
[1770078125876,0.5,104.4,104.37,45.02754644]
[1770078126050,0.5,104.41,104.37,45.02754644]
[1770078126250,0.5,104.41,104.38,9.57963353]
[1770078126451,0.5,104.41,104.37,35.44627438]
[1770078126452,9.32627438,104.41,104.37,35.44627438]
[1770078128180,0.5,104.41,104.38,8.82627438]
[1770078128557,0.5,104.41,104.37,45.02735233]
[1770078129057,0.5,104.41,104.38,8.82627438]
[1770078130581,0.5,104.39,104.37,26.62]
[1770078131679,9.32627438,104.39,104.37,26.62]
[1770078131867,0.5,104.38,104.37,26.12]
[1770078132053,0.5,104.38,104.37,23.27817105]
[1770078132259,18.40597986,104.39,104.37,22.27817105]
[1770078132674,18.40597986,104.39,104.35,0.5]
[1770078133180,8.82627438,104.39,104.35,0.5]
[1770078133376,8.82627438,104.39,104.35,9.32627438]
[1770078133574,8.82627438,104.39,104.35,0.5]
[1770078134087,8.82627438,104.38,104.35,0.5]
[1770078134395,8.82627438,104.36,104.29,0.5]
[1770078134690,8.82627438,104.3,104.28,53.44961013]
[1770078134982,8.82627438,104.3,104.27,0.5]
[1770078135189,8.82627438,104.31,104.27,0.5]
[1770078135386,8.82627438,104.31,104.27,10.09036914]
[1770078135681,8.82627438,104.34,104.3,0.5]
[1770078136070,8.82627438,104.35,104.31,0.5]
[1770078136677,0.5,104.43,104.32,26.62]
[1770078136874,0.5,104.4,104.36,8.82627438]
[1770078137078,9.32627438,104.4,104.36,8.82627438]
[1770078137287,0.5,104.4,104.37,8.82627438]
[1770078138191,0.5,104.4,104.39,8.82627438]
[1770078138484,0.5,104.4,104.36,18.40805816]
[1770078138789,0.5,104.4,104.38,8.82627438]
[1770078139168,0.5,104.4,104.37,8.82627438]
[1770078139685,0.5,104.4,104.38,8.82627438]
[1770078140194,0.5,104.4,104.39,8.82627438]
[1770078140590,0.5,104.4,104.38,8.82627438]
[1770078142305,0.5,104.41,104.39,8.82627438]
[1770078146280,0.5,104.41,104.37,9.58084406]
[1770078146281,0.5,104.41,104.36,23.95528334]
[1770078146601,9.57588719,104.43,104.38,8.82627438]
[1770078148570,10.03664179,104.42,104.37,18.40717118]
[1770078148777,0.45991801,104.41,104.36,8.82627438]
[1770078149593,0.45991801,104.4,104.36,8.82627438]
[1770078149898,0.45991801,104.4,104.35,18.87668568]
[1770078150478,0.45991801,104.39,104.35,8.82627438]
[1770078152211,0.45991801,104.39,104.35,18.87701306]
[1770078153097,0.45991801,104.39,104.35,8.82627438]
[1770078153401,0.45991801,104.39,104.35,18.40937519]
[1770078155797,0.45991801,104.39,104.37,8.82627438]
[1770078156589,0.45991801,104.39,104.36,8.82627438]
[1770078157313,10.03757197,104.41,104.37,9.29397915]
[1770078157604,0.45991801,104.41,104.38,8.82627438]
[1770078158606,0.45991801,104.41,104.38,3.53047005]
[1770078159690,0.45991801,104.41,104.37,3.99817482]
[1770078160306,0.45991801,104.4,104.37,3.99817482]
[1770078160695,0.45991801,104.4,104.35,3.53047005]
[1770078160901,0.45991801,104.39,104.34,3.99817482]
[1770078161611,0.45991801,104.38,104.34,3.99817482]
[1770078162499,0.45991801,104.38,104.34,9.30026593]
[1770078162713,0.45991801,104.38,104.34,18.88425138]
[1770078163709,0.45991801,104.4,104.37,8.83256116]
[1770078164013,0.45991801,104.4,104.35,0.46770477]
[1770078164189,0.45991801,104.4,104.36,9.30026593]
[1770078165195,0.45991801,104.4,104.36,18.88231834]
[1770078167114,0.45991801,104.4,104.36,9.30026593]
[1770078167414,0.45991801,104.4,104.36,18.88246381]
[1770078168015,0.45991801,104.39,104.36,8.83256116]
[1770078168207,0.45991801,104.39,104.36,9.30026593]
[1770078168992,0.45991801,104.39,104.34,10.05126942]
[1770078169198,0.45991801,104.38,104.34,18.88383058]
[1770078169715,0.45991801,104.38,104.35,8.83256116]
[1770078169910,0.45991801,104.38,104.33,50.5814134]
[1770078169911,0.45991801,104.38,104.33,8.83256116]
[1770078170115,0.48273911,104.37,104.33,8.83256116]
[1770078170413,0.48273911,104.37,104.32,0.48922542]
[1770078170414,0.48273911,104.37,104.32,18.90730685]
[1770078170614,10.06445203,104.37,104.32,18.90730685]
[1770078170915,0.48273911,104.36,104.33,8.83256116]
[1770078171901,0.48273911,104.36,104.32,18.90730685]
[1770078172413,0.48273911,104.36,104.33,8.83256116]
[1770078173429,0.48273911,104.36,104.33,9.31253123]
[1770078173802,0.48273911,104.37,104.34,9.31253123]
[1770078174118,0.48273911,104.38,104.35,8.83256116]
[1770078174515,0.48273911,104.38,104.34,9.31253123]
[1770078175822,0.48273911,104.38,104.34,18.89639857]
[1770078176432,0.48273911,104.38,104.34,18.89648616]
[1770078179021,0.48273911,104.38,104.35,8.83264875]
[1770078179222,0.48273911,104.38,104.34,18.89648616]
[1770078180034,0.48273911,104.38,104.34,9.31261882]
[1770078180217,0.48273911,104.38,104.34,0.47997007]
[1770078180418,0.48273911,104.37,104.34,9.31261882]
[1770078181438,0.48273911,104.37,104.33,27.09997007]
[1770078181638,0.48273911,104.37,104.33,9.31261882]
[1770078181952,0.48273911,104.34,104.3,9.31261882]
[1770078182137,0.48273911,104.33,104.29,18.90096186]
[1770078182440,0.48273911,104.33,104.29,0.47997007]
[1770078182441,9.31538786,104.33,104.29,0.47997007]
[1770078183043,0.48273911,104.33,104.29,0.47997007]
[1770078184048,0.48273911,104.33,104.28,18.42172735]
[1770078184049,0.48273911,104.32,104.28,0.47997007]
[1770078184351,18.41762533,104.33,104.27,0.2]
[1770078184352,0.48273911,104.3,104.27,0.2]
[1770078184841,0.48273911,104.29,104.27,0.2]
[1770078186325,0.48273911,104.29,104.24,18.90541709]
[1770078186730,0.48273911,104.28,104.24,18.90541709]
[1770078186950,0.48273911,104.28,104.24,9.31261882]
[1770078187742,9.5887614,104.29,104.23,0.2]
[1770078187743,0.48273911,104.26,104.23,0.2]
[1770078187944,0.48273911,104.24,104.22,0.2]
[1770078188737,8.83264875,104.27,104.22,9.03264875]
[1770078188738,9.59085147,104.27,104.22,9.03264875]
[1770078189042,0.48273911,104.26,104.22,9.51261882]
[1770078189827,0.48273911,104.26,104.23,9.31261882]
[1770078190031,0.48273911,104.26,104.22,0.2]
[1770078190234,0.48273911,104.26,104.22,9.51261882]
[1770078191626,10.07441657,104.26,104.22,9.51261882]
[1770078191829,0.48273911,104.24,104.22,0.2]
[1770078192145,0.48273911,104.23,104.2,0.47997007]
[1770078192831,0.48273911,104.23,104.19,55.32483266]
[1770078193032,0.48273911,104.23,104.2,9.31261882]
[1770078194526,0.48273911,104.23,104.2,0.47997007]
[1770078196746,0.48273911,104.25,104.21,9.31261882]
[1770078197261,0.48273911,104.23,104.2,0.47997007]
[1770078198549,9.31538786,104.24,104.2,0.47997007]
[1770078198748,0.48273911,104.24,104.2,0.47997007]
[1770078199633,0.48273911,104.23,104.2,0.47997007]
[1770078200955,0.45236279,104.25,104.21,4.02762244]
[1770078201750,0.45236279,104.25,104.22,0.4846981]
[1770078204148,167.8,104.29,104.21,8.85443728]
[1770078204149,244.47889987,104.34,104.25,0.4846981]
[1770078204352,0.45236279,104.29,104.25,0.4846981]
[1770078204555,0.45236279,104.29,104.25,9.33913538]
[1770078205253,0.45236279,104.29,104.26,9.33913538]
[1770078205832,10.04109195,104.29,104.25,0.4846981]
[1770078206038,0.45236279,104.28,104.24,9.33913538]
[1770078206259,0.45236279,104.27,104.24,0.4846981]
[1770078206637,0.45236279,104.27,104.23,0.4846981]
[1770078206832,0.45236279,104.31,104.24,0.4846981]
[1770078207038,0.45236279,104.31,104.27,9.33913538]
[1770078207330,0.45236279,104.29,104.25,9.33913538]
[1770078207950,0.45236279,104.27,104.23,9.33913538]
[1770078208545,0.45236279,104.27,104.24,0.4846981]
[1770078209851,0.45236279,104.27,104.24,9.33913538]
[1770078210858,0.45236279,104.27,104.24,0.4846981]
[1770078212059,0.45236279,104.27,104.23,9.33913538]
[1770078212359,8.85443728,104.27,104.23,0.4846981]
[1770078212541,0.45236279,104.26,104.23,0.4846981]
[1770078216547,0.45236279,104.26,104.23,18.9330121]
[1770078217064,0.45236279,104.26,104.23,0.4846981]
[1770078217359,0.45236279,104.23,104.18,0.4846981]
[1770078217545,0.45236279,104.22,104.18,18.9374933]
[1770078217950,0.45236279,104.22,104.19,0.4846981]
[1770078218149,0.45236279,104.22,104.19,9.33913538]
[1770078218568,9.30680007,104.22,104.18,0.4846981]
[1770078218857,0.45236279,104.22,104.18,18.93789085]
[1770078219667,0.45236279,104.22,104.19,0.4846981]
[1770078221164,0.45236279,104.23,104.2,0.4846981]
[1770078221663,0.45236279,104.23,104.19,18.9369116]
[1770078222862,0.45236279,104.24,104.21,9.33913538]
[1770078223060,0.45236279,104.24,104.21,0.4846981]
[1770078223260,0.45236279,104.24,104.2,9.33913538]
[1770078223463,0.45236279,104.24,104.16,35.51443728]
[1770078223464,0.45236279,104.22,104.18,9.33913538]
[1770078223961,0.45236279,104.22,104.18,18.93787869]
[1770078224359,0.45236279,104.22,104.18,13.62739916]
[1770078224863,33.57324132,104.25,104.22,0.4846981]
[1770078224864,0.45236279,104.25,104.22,0.4846981]
[1770078225045,0.45236279,104.25,104.21,4.02865585]
[1770078225249,0.45236279,104.25,104.22,0.4846981]
[1770078225564,0.45236279,104.25,104.22,4.02865585]
[1770078225969,0.45236279,104.25,104.22,0.4846981]
[1770078226568,0.45236279,104.25,104.22,9.33849206]
[1770078227962,0.45236279,104.26,104.22,9.33849206]
[1770078228265,0.45236279,104.28,104.24,9.33849206]
[1770078228464,0.45236279,104.26,104.23,0.4846981]
[1770078228970,0.45236279,104.26,104.23,9.33849206]
[1770078229854,0.46024296,104.27,104.24,9.34005404]
[1770078230053,0.46024296,104.27,104.24,0.48626008]
[1770078230455,0.46024296,104.27,104.24,9.34005404]
[1770078230653,0.47087764,104.29,104.26,9.32792794]
[1770078231662,0.47087764,104.29,104.25,8.85379396]
[1770078231871,0.47087764,104.29,104.25,9.32792794]
[1770078233462,0.47087764,104.28,104.25,9.32792794]
[1770078235780,10.05912828,104.3,104.26,9.32792794]
[1770078235968,0.47087764,104.29,104.26,9.32792794]
[1770078236154,0.47087764,104.29,104.26,0.47413398]
[1770078237495,0.47087764,104.28,104.24,18.91414845]
[1770078238170,0.47087764,104.28,104.24,9.3213577]
[1770078238984,0.47087764,104.28,104.25,0.47413398]
[1770078240088,9.31810136,104.28,104.24,0.47413398]
[1770078240267,0.47087764,104.27,104.24,0.47413398]
[1770078240461,0.47087764,104.28,104.25,0.47413398]
[1770078240667,0.47087764,104.28,104.25,9.3213577]
[1770078240881,0.47087764,104.28,104.25,0.47413398]
[1770078241285,0.47087764,104.27,104.24,0.47413398]
[1770078241489,0.47087764,104.26,104.22,0.47413398]
[1770078241677,0.47087764,104.25,104.22,0.47413398]
[1770078241988,0.47087764,104.24,104.21,0.47413398]
[1770078243167,9.59160385,104.26,104.22,0.47413398]
[1770078243168,18.90970521,104.26,104.22,0.47413398]
[1770078243373,0.47087764,104.25,104.22,0.47413398]
[1770078244880,10.06169611,104.27,104.23,0.47413398]
[1770078245079,0.47087764,104.26,104.23,9.3213577]
[1770078245590,0.47087764,104.26,104.23,0.47413398]
[1770078245794,0.47087764,104.25,104.22,0.47413398]
[1770078246197,0.47087764,104.26,104.23,0.47413398]
[1770078247597,0.47087764,104.27,104.24,0.47413398]
[1770078249279,0.47087764,104.27,104.24,4.01522744]
[1770078249486,0.47087764,104.27,104.24,0.47413398]
[1770078250495,0.47087764,104.26,104.23,4.01522744]
[1770078250671,0.47087764,104.27,104.24,0.47413398]
[1770078253070,10.06153141,104.27,104.24,0.47413398]
[1770078253690,0.47087764,104.26,104.23,4.01522744]
[1770078253991,0.47087764,104.25,104.22,0.47413398]
[1770078255987,0.47087764,104.24,104.21,0.47413398]
[1770078257799,0.47087764,104.23,104.19,0.47413398]
[1770078258008,0.47087764,104.2,104.17,0.47413398]
[1770078258300,3.54109346,104.21,104.18,4.01522744]
[1770078258301,0.47087764,104.21,104.18,4.01522744]
[1770078258997,4.0119711,104.22,104.19,0.47413398]
[1770078259598,13.60524085,104.24,104.2,0.47413398]
[1770078259843,0.47087764,104.23,104.2,0.47413398]
[1770078259978,4.0119711,104.22,104.18,4.01522744]
[1770078260297,4.0119711,104.22,104.19,0.45962887]
[1770078260680,4.00622062,104.21,104.18,0.45962887]
[1770078261583,0.46512716,104.21,104.18,0.45962887]